bitfinex/quotes_ETHUSD_20250403
["timestamp","ask_amount","ask_price","bid_price","bid_amount"]
[1743707095695,4.78911124,1791.4,1791.3,5.58253]
[1743707096127,0.8202,1791.5,1791.4,5.58222]
[1743707096299,10.74911124,1791.6,1791.4,5.58222]
[1743707096840,11.16909682,1791.6,1791.3,5.58253]
[1743707097023,16.75080682,1791.6,1791.3,5.58253]
[1743707097532,16.75080682,1791.6,1791.2,5.58279]
[1743707097733,4.78911124,1791.4,1791.1,5.58311]
[1743707098113,6.34533,1791.5,1790.7,0.7725]
[1743707098114,0.8119,1791.1,1790.7,0.7725]
[1743707098317,4.78911124,1791.0,1790.6,5.58472]
[1743707098515,4.78911124,1791.0,1790.7,5.58423]
[1743707098733,4.78911124,1791.0,1790.8,5.58407]
[1743707099505,5.75,1790.9,1790.7,5.58437]
[1743707099939,5.75,1790.9,1790.8,5.58409]
[1743707100135,5.75,1790.9,1790.7,5.58423]
[1743707100339,0.0291519,1790.9,1790.7,12.34123001]
[1743707100507,0.0291519,1790.9,1790.8,6.89969]
[1743707103224,0.0291519,1790.9,1790.8,6.95551737]
[1743707103752,1.9e-06,1790.9,1790.8,9.95551737]
[1743707103956,5.751,1791.6,1791.5,5.58191]
[1743707106254,0.8253,1791.8,1791.6,5.58155]
[1743707106455,5.751,1791.8,1791.7,5.58129]
[1743707106630,50.94511124,1791.9,1791.8,5.58098]
[1743707106631,5.96,1791.9,1791.8,5.58098]
[1743707107634,5.96,1791.9,1791.7,5.58129]
[1743707109873,5.96,1791.9,1791.7,5.58114]
[1743707110356,5.96,1791.9,1791.7,11.16232]
[1743707111280,5.96,1791.9,1791.8,5.58098]
[1743707111457,5.96,1791.9,1791.8,6.697192]
[1743707111654,6.17932917,1792.1,1791.9,5.58044]
[1743707111857,6.17932917,1792.1,1791.9,11.16094]
[1743707112261,6.17932917,1792.1,1791.9,5.58044]
[1743707112471,5.57914,1792.4,1792.0,5.58009]
[1743707112472,6.5159,1792.4,1792.0,5.58009]
[1743707112676,4.78911124,1792.3,1792.1,6.137759]
[1743707112876,5.19862022,1792.3,1792.1,5.57975]
[1743707113966,0.40950898,1792.3,1792.1,5.57975]
[1743707114176,11.30501124,1792.4,1792.1,5.57975]
[1743707114877,11.30501124,1792.4,1792.3,5.57942]
[1743707115079,5.749,1792.5,1792.3,5.57942]
[1743707115393,5.749,1792.5,1792.4,5.5791]
[1743707115573,0.54158372,1793.2,1792.4,5.5791]
[1743707115574,0.8721,1792.9,1792.7,5.57793]
[1743707115759,0.05,1792.9,1792.7,11.15594]
[1743707115954,0.05,1792.9,1792.7,5.57793]
[1743707116159,0.05,1792.9,1792.8,5.57786]
[1743707116348,0.05,1792.9,1792.8,6.41413793]
[1743707116797,0.05,1792.9,1792.8,6.35836]
[1743707117651,0.05,1792.9,1792.8,5.57786]
[1743707119095,0.05,1792.9,1792.7,5.57793]
[1743707119802,0.05,1792.9,1792.6,5.57844]
[1743707119962,0.05,1792.9,1792.6,11.15677]
[1743707120165,0.05,1792.9,1792.7,5.57815]
[1743707120565,0.05,1792.9,1792.8,5.57786]
[1743707121820,0.05,1792.9,1792.8,6.95006]
[1743707122028,0.05,1792.9,1792.8,7.00582674]
[1743707122180,1e-05,1792.9,1792.8,10.00582674]
[1743707122698,0.8418,1793.9,1793.2,0.7531]
[1743707122898,0.05,1793.9,1793.8,5.57475]
[1743707123100,0.05,1793.9,1793.6,5.57534]
[1743707123266,0.05,1793.9,1793.5,5.57561]
[1743707123267,5.57508,1793.7,1793.4,5.57587]
[1743707123468,12.13455,1793.8,1793.4,5.57587]
[1743707123668,14.210152,1793.8,1793.5,5.57564]
[1743707123903,14.210152,1793.8,1793.4,5.57579]
[1743707124081,14.210152,1793.8,1793.3,5.57629]
[1743707124408,14.210152,1793.8,1793.1,5.57684]
[1743707124409,0.7728,1793.4,1793.1,5.57684]
[1743707124705,12.09486,1793.4,1793.0,5.57708]
[1743707124890,13.861919,1793.4,1792.9,5.57753]
[1743707125066,5.57644,1793.3,1792.9,5.57753]
[1743707125789,13.861889,1793.4,1792.9,5.63311958]
[1743707125981,19.438109,1793.4,1793.0,5.57707]
[1743707126297,13.861889,1793.4,1793.0,11.15418]
[1743707126503,13.861889,1793.4,1793.0,5.57707]
[1743707126816,1.3861889,1793.3,1793.0,5.57708]
[1743707126999,8.115859,1793.4,1793.0,11.15421]
[1743707127207,5.745,1793.3,1793.0,11.15414]
[1743707127374,0.7728,1793.4,1793.1,5.57691]
[1743707127572,9.5178,1793.4,1793.2,5.57661]
[1743707127872,9.5178,1793.4,1793.1,5.57691]
[1743707128501,9.5178,1793.4,1793.1,5.57674]
[1743707128667,5.745,1793.4,1793.3,5.57631]
[1743707128872,5.745,1793.4,1793.2,5.57662]
[1743707129709,5.745,1793.4,1793.1,5.5769]
[1743707129908,5.745,1793.4,1793.1,5.57682]
[1743707130405,5.745,1793.4,1793.3,5.57631]
[1743707130614,6.38685,1793.9,1793.6,5.57537]
[1743707130777,5.745,1793.8,1793.5,5.57548]
[1743707130973,9.5573,1793.9,1793.6,11.15047]
[1743707131173,0.8123,1793.9,1793.7,5.57499]
[1743707131370,0.05,1793.9,1793.8,5.57475]
[1743707132109,0.05,1793.9,1793.8,5.88075786]
[1743707132981,0.05,1793.9,1793.8,7.0820759]
[1743707133200,0.05,1793.9,1793.8,1.45158265]
[1743707133393,0.05,1793.9,1793.8,0.30600786]
[1743707133776,0.7965,1793.8,1793.4,5.57594]
[1743707133978,6.37138,1793.8,1793.4,11.20755253]
[1743707134274,11.94635,1793.8,1793.4,5.57586]
[1743707134478,5.57553,1793.6,1793.2,5.57649]
[1743707134673,11.3197,1793.5,1793.1,5.8557917]
[1743707134877,0.7965,1793.4,1793.1,0.2789117]
[1743707135081,0.7965,1793.4,1793.2,5.57659]
[1743707136111,0.7965,1793.4,1793.2,5.57646]
[1743707136291,5.744,1793.5,1793.4,5.576]
[1743707136705,5.744,1793.5,1793.3,5.57631]
[1743707136892,5.744,1793.5,1793.4,0.25347143]
[1743707137492,5.744,1793.5,1793.2,5.57648]
[1743707137810,5.744,1793.5,1793.4,0.25347143]
[1743707138014,5.744,1793.5,1793.2,5.57648]
[1743707138211,5.744,1793.5,1793.4,0.25347143]
[1743707138415,5.744,1793.5,1793.2,5.57648]
[1743707138614,11.31975,1793.5,1793.2,5.57648]
[1743707138805,11.31975,1793.5,1793.3,0.25347143]
[1743707139003,0.7535,1793.4,1793.3,0.25347143]
[1743707139204,34.73475962,1793.4,1793.3,0.25347143]
[1743707139403,5.5772,1793.1,1792.7,5.57815]
[1743707139617,11.3202,1793.1,1792.7,5.57815]
[1743707139781,5.57726,1793.0,1792.8,0.25347143]
[1743707139986,11.3202,1793.1,1792.8,5.57775]
[1743707140186,11.3202,1793.1,1792.9,0.25347143]
[1743707140400,5.57724,1793.0,1792.9,0.25347143]
[1743707140587,5.57724,1793.0,1792.7,5.63392493]
[1743707140793,11.3201,1793.1,1792.9,0.25347143]
[1743707141014,11.3201,1793.1,1792.8,5.57786]
[1743707141015,5.743,1793.1,1792.8,5.57786]
[1743707141203,5.57663,1793.2,1793.0,0.25640294]
[1743707141408,5.57663,1793.2,1792.8,5.57782]
[1743707141603,9.32984,1793.3,1792.9,5.57726]
[1743707141838,5.72413182,1793.6,1793.0,0.05577252]
[1743707141839,0.7584,1793.6,1793.0,0.05577252]
[1743707142020,12.29326,1793.8,1793.4,5.57598]
[1743707142224,6.7184,1793.8,1793.1,0.80595183]
[1743707142423,5.57506,1793.7,1793.3,5.5763]
[1743707142724,5.57506,1793.7,1793.3,11.15235]
[1743707143020,9.38118,1793.5,1793.4,0.25595183]
[1743707143190,14.917421,1793.5,1793.4,0.25595183]
[1743707143386,11.703,1793.6,1793.0,6.12724]
[1743707143590,11.703,1793.6,1793.4,5.57576]
[1743707143823,5.743,1793.6,1793.4,5.57576]
[1743707144022,8.743,1793.6,1793.5,0.25442962]
[1743707144425,5.743,1793.6,1793.5,5.83010962]
[1743707145394,6.5483,1793.7,1793.5,5.83010962]
[1743707145592,6.5483,1793.7,1793.5,0.25442962]
[1743707146301,13.931928,1793.7,1793.5,0.25442962]
[1743707146722,6.5483,1793.7,1793.4,5.57577]
[1743707146894,6.5483,1793.7,1793.6,0.25442962]
[1743707147219,6.5483,1793.7,1793.5,5.57563]
[1743707147421,5.96,1793.8,1793.6,0.25442962]
[1743707147622,0.05,1793.9,1793.8,5.57475]
[1743707147811,0.05,1793.9,1793.8,8.06886818]
[1743707148012,0.05,1793.9,1793.8,8.3210435]
[1743707148521,0.05,1793.9,1793.8,8.26530632]
[1743707148700,0.05,1793.9,1793.8,8.43959348]
[1743707149024,0.05,1793.9,1793.8,8.49532254]
[1743707149212,1e-05,1793.9,1793.8,11.43959348]
[1743707149994,1e-05,1793.9,1793.8,8.43959348]
[1743707150291,1e-05,1793.9,1793.8,8.49532612]
[1743707151404,1e-05,1793.9,1793.8,8.43959348]
[1743707151606,1e-05,1793.9,1793.8,8.49532181]
[1743707153695,1e-05,1793.9,1793.8,8.43959348]
[1743707154622,1e-05,1793.9,1793.8,1.59716756]
[1743707154828,1e-05,1793.9,1793.8,0.42646248]
[1743707156415,5.57445,1793.9,1793.8,0.25217532]
[1743707156611,5.57445,1793.9,1793.5,11.32541716]
[1743707156819,11.31545,1793.9,1793.5,11.32529716]
[1743707157035,11.31545,1793.9,1793.6,0.20270277]
[1743707157442,5.74101,1793.9,1793.7,5.57506]
[1743707157915,5.74101,1793.9,1793.8,0.20270277]
[1743707159135,5.74101,1793.9,1793.8,5.77745277]
[1743707159350,1e-05,1793.9,1793.8,5.77745277]
[1743707159542,1e-05,1793.9,1793.8,0.20270277]
[1743707160346,0.02915429,1793.9,1793.8,0.20270277]
[1743707160549,0.02915429,1793.9,1793.8,6.35521105]
[1743707160920,0.02915429,1793.9,1793.8,6.41095262]
[1743707161123,0.02915429,1793.9,1793.8,6.35521105]
[1743707161521,0.02915429,1793.9,1793.8,4.77745277]
[1743707161824,0.02915429,1793.9,1793.8,5.01900336]
[1743707162037,0.02915429,1793.9,1793.8,4.96326364]
[1743707162243,0.02915429,1793.9,1793.8,0.18581087]
[1743707162244,6.41059429,1793.9,1793.8,0.18581087]
[1743707162428,0.02915429,1793.9,1793.8,5.76056087]
[1743707162636,0.02915429,1793.9,1793.8,6.9171157]
[1743707163041,0.78575429,1793.9,1793.8,0.18581087]
[1743707165247,0.78575429,1793.9,1793.8,5.76056087]
[1743707165754,0.02915429,1793.9,1793.8,5.81630613]
[1743707166062,0.02915429,1793.9,1793.8,7.15880613]
[1743707166245,4.29e-06,1793.9,1793.8,8.98967674]
[1743707166447,5.74,1794.5,1794.3,5.57314]
[1743707166627,5.74,1794.5,1794.4,5.57289]
[1743707166828,5.74,1794.5,1794.4,5.75870087]
[1743707167237,12.12971,1794.7,1794.4,5.75870087]
[1743707167441,13.899852,1794.7,1794.3,11.1461]
[1743707167754,13.899852,1794.7,1794.4,0.18581087]
[1743707167934,5.57239,1794.6,1794.4,0.18581087]
[1743707168132,5.57258,1794.5,1794.4,0.18581087]
[1743707168450,6.40121,1794.4,1794.1,5.5738]
[1743707168860,0.8283,1794.4,1794.1,5.57372]
[1743707169028,2.025667,1794.4,1794.2,0.18581087]
[1743707169860,6.40147,1794.4,1794.0,5.57397]
[1743707170059,6.40119,1794.4,1793.8,5.57474]
[1743707170227,5.57325,1794.3,1794.1,0.18558604]
[1743707170733,11.31325,1794.3,1793.9,11.14858]
[1743707171054,16.88661,1794.3,1793.9,11.14859]
[1743707171255,13.084741,1794.3,1794.0,5.75969604]
[1743707171457,6.38056,1794.2,1794.0,0.18558604]
[1743707171661,10.324345,1794.1,1794.0,0.18558604]
[1743707171879,5.57417,1794.0,1793.7,5.57491]
[1743707172059,6.9626388,1794.0,1793.8,0.18558604]
[1743707172263,5.74,1793.9,1793.8,0.18558604]
[1743707172467,17.69907,1793.9,1793.6,0.27885349]
[1743707172631,17.69907,1793.9,1793.7,0.18558604]
[1743707172831,5.57475,1793.8,1793.6,0.27885349]
[1743707173065,5.57475,1793.8,1793.5,5.57557]
[1743707173261,5.57475,1793.8,1793.6,0.18558604]
[1743707173466,7.344669,1793.8,1793.6,0.18558604]
[1743707174133,1.769919,1793.8,1793.6,0.18558604]
[1743707174533,1.769919,1793.8,1793.6,5.76095604]
[1743707174735,6.55,1793.9,1793.6,5.76085604]
[1743707175035,5.74,1793.9,1793.8,5.57475]
[1743707175250,5.74,1793.9,1793.8,5.76309025]
[1743707175447,5.74,1793.9,1793.8,0.18834025]
[1743707175653,11.31444,1793.9,1793.5,5.57567]
[1743707175844,0.7551,1793.7,1793.5,11.15116]
[1743707176050,0.7551,1793.7,1793.6,0.18834025]
[1743707176452,6.4951,1793.9,1793.7,5.57493]
[1743707176840,12.06957,1793.9,1793.8,0.18834025]
[1743707177140,12.06957,1793.9,1793.6,5.57535]
[1743707177341,6.4951,1793.9,1793.3,0.82885349]
[1743707177573,6.22451,1793.8,1793.7,0.18834025]
[1743707177742,6.22443,1793.8,1793.4,11.15175]
[1743707177943,6.22443,1793.8,1793.7,0.18834025]
[1743707178451,5.5754,1793.6,1793.3,5.85520912]
[1743707178783,5.5754,1793.6,1793.4,0.18834025]
[1743707179141,5.57568,1793.5,1793.4,0.18834025]
[1743707179541,11.31568,1793.5,1793.4,0.18834025]
[1743707179764,16.89163,1793.5,1793.1,5.75115099]
[1743707180071,16.89163,1793.5,1793.1,0.17436099]
[1743707180072,5.57662,1793.2,1793.1,0.17436099]
[1743707180259,6.134282,1793.2,1793.1,0.17436099]
[1743707180467,9.918382,1793.2,1793.1,0.17436099]
[1743707180843,4.341762,1793.2,1793.1,0.17436099]
[1743707181056,9.918382,1793.2,1793.1,0.17436099]
[1743707181255,9.918382,1793.2,1792.9,0.27885349]
[1743707181458,11.31707,1793.1,1793.0,0.15163623]
[1743707181675,5.74,1793.1,1792.8,5.57775]
[1743707181893,5.74,1793.1,1792.8,5.57774]
[1743707182077,5.74,1793.1,1792.9,0.15163623]
[1743707182246,11.31694,1793.1,1792.9,0.15163623]
[1743707182448,11.31694,1793.1,1792.8,5.5777]
[1743707182649,5.74,1793.1,1792.9,5.72979847]
[1743707182847,5.74,1793.1,1792.9,5.72967847]
[1743707183657,5.74,1793.1,1793.0,5.57724]
[1743707183880,5.74,1793.1,1792.9,5.57737]
[1743707184078,5.74,1793.1,1793.0,0.15230847]
[1743707184383,10.87531662,1793.4,1793.2,5.57643]
[1743707184384,0.8207,1793.4,1793.2,5.57643]
[1743707185357,0.8207,1793.4,1793.3,5.57631]
[1743707185669,0.8207,1793.4,1793.3,0.15230847]
[1743707186485,5.741,1793.5,1793.4,5.576]
[1743707186690,0.8007,1793.6,1793.4,5.576]
[1743707186854,5.741,1793.5,1793.4,5.576]
[1743707187054,5.741,1793.5,1793.4,5.72830847]
[1743707187455,5.741,1793.5,1793.4,0.15230847]
[1743707187756,5.741,1793.5,1793.3,11.15232]
[1743707188075,3.0,1793.7,1793.4,5.72816847]
[1743707188280,5.741,1793.7,1793.5,5.57557]
[1743707188453,5.741,1793.7,1793.4,0.15230847]
[1743707188658,6.39528,1793.4,1793.0,5.57714]
[1743707188859,11.31737,1793.3,1793.1,0.15001204]
[1743707189053,13.088635,1793.3,1793.1,0.15001204]
[1743707189278,13.088635,1793.3,1793.0,5.57715]
[1743707189484,7.512265,1793.3,1793.1,0.15001204]
[1743707189784,7.92284038,1793.3,1793.0,5.57712]
[1743707189989,7.92284038,1793.3,1793.2,0.15001204]
[1743707190191,7.92284038,1793.3,1793.1,5.57682]
[1743707190486,7.92284038,1793.3,1793.2,0.15001204]
[1743707190789,0.819,1793.4,1793.2,5.57662]
[1743707191087,5.741,1793.5,1793.4,5.576]
[1743707191562,5.741,1793.5,1793.4,5.72601204]
[1743707192077,5.741,1793.5,1793.3,5.57628]
[1743707192261,6.955217,1793.5,1793.4,5.72601204]
[1743707192464,6.955217,1793.5,1793.4,0.15001204]
[1743707192864,6.955217,1793.5,1793.4,5.72601204]
[1743707193068,5.741,1793.5,1793.4,5.72601204]
[1743707194471,6.5667,1793.6,1793.5,5.57568]
[1743707194677,40.154,1793.8,1793.6,5.57511]
[1743707194887,5.741,1793.7,1793.6,5.57511]
[1743707195082,5.741,1793.7,1793.6,5.72557012]
[1743707195901,5.741,1793.7,1793.6,0.15046012]
[1743707196100,28.54722062,1793.7,1793.6,0.15046012]
[1743707196409,8.57567,1793.6,1793.2,5.57662]
[1743707196713,3.0,1793.7,1793.6,5.57537]
[1743707197010,46.7199,1793.8,1793.6,11.30086414]
[1743707197191,46.7199,1793.8,1793.6,0.15012414]
[1743707197394,4.67199,1793.7,1793.6,0.15012414]
[1743707197595,4.67199,1793.7,1793.5,5.57554]
[1743707197790,46.7199,1793.8,1793.2,0.8002]
[1743707197791,46.7199,1793.8,1793.7,5.57506]
[1743707198105,46.7199,1793.8,1793.6,5.57516]
[1743707198289,46.7199,1793.8,1793.7,0.15012414]
[1743707198494,46.7199,1793.8,1793.7,5.57506]
[1743707198694,45.895,1793.8,1793.7,5.72518414]
[1743707198992,5.741,1793.9,1793.8,5.5746]
[1743707199213,5.741,1793.9,1793.7,11.30006414]
[1743707199526,5.741,1793.9,1793.8,0.15012414]
[1743707200111,6.5581,1794.3,1794.0,5.57396]
[1743707200310,8.89714366,1794.3,1794.1,0.1484446]
[1743707200511,14.47034366,1794.3,1794.1,0.1484446]
[1743707200815,3.15614366,1794.3,1794.1,11.2958246]
[1743707201006,5.741,1794.2,1794.1,5.7221146]
[1743707201586,5.96,1794.4,1794.2,5.57351]
[1743707201786,5.74,1794.4,1794.2,5.57351]
[1743707202421,5.74,1794.4,1794.3,5.5731]
[1743707202722,5.74,1794.4,1794.3,5.7215446]
[1743707203422,5.74,1794.4,1794.3,0.1484446]
[1743707204283,5.74,1794.4,1794.3,5.7216446]
[1743707204793,5.74,1794.4,1794.3,0.1484446]
[1743707204986,10.40644,1794.4,1794.3,0.1484446]
[1743707205185,31.85927883,1794.4,1794.3,0.1484446]
[1743707205390,5.57326,1794.3,1794.0,5.57409]
[1743707205716,0.8223,1794.2,1794.1,0.14424602]
[1743707205928,0.8223,1794.2,1794.1,5.57382]
[1743707206526,0.8223,1794.2,1794.1,5.71806602]
[1743707207319,15.25073445,1794.4,1794.2,5.5735]
[1743707207821,3.40915783,1794.4,1794.2,11.1469]
[1743707208021,8.739,1794.4,1794.3,5.71744602]
[1743707208188,6.37032912,1794.7,1794.5,5.57258]
[1743707208531,0.05,1794.9,1794.8,5.57165]
[1743707208695,0.05,1794.9,1794.8,6.33155]
[1743707209020,0.05,1794.9,1794.8,0.14295875]
[1743707209392,0.05,1794.9,1794.8,5.57165]
[1743707209588,0.05,1794.9,1794.8,6.43221824]
[1743707209797,0.05,1794.9,1794.8,7.9551844]
[1743707210295,0.05,1794.9,1794.8,10.9551844]
[1743707210622,5.738,1795.5,1795.3,5.56997]
[1743707210824,5.738,1795.5,1795.3,11.13992]
[1743707211121,5.738,1795.5,1795.4,0.13697284]
[1743707211909,11.34543,1795.5,1795.4,0.13697284]
[1743707212111,11.30747,1795.5,1795.1,5.57042]
[1743707212427,5.738,1795.5,1795.2,5.70733284]
[1743707212643,5.688,1795.5,1795.3,5.56997]
[1743707213141,5.688,1795.5,1795.4,0.13697284]
[1743707214620,5.688,1795.5,1795.2,6.36693]
[1743707214826,11.25751,1795.5,1795.4,0.13697284]
[1743707215121,5.57015,1795.3,1794.9,5.5712]
[1743707215334,6.38089,1795.4,1795.0,0.13697284]
[1743707215335,5.57096,1795.1,1795.0,0.13697284]
[1743707215494,12.13526,1795.1,1795.0,0.13697284]
[1743707215828,5.57104,1795.0,1794.6,6.38593]
[1743707215989,5.57104,1795.0,1794.6,5.57213]
[1743707216192,5.57104,1795.0,1794.6,6.686597]
[1743707216621,5.57104,1795.0,1794.6,12.258737]
[1743707216790,5.57104,1795.0,1794.7,5.57194]
[1743707216996,6.5643,1795.1,1794.6,1.114467]
[1743707217198,12.13506,1795.1,1794.7,6.3935]
[1743707217421,5.57119,1795.0,1794.6,5.57222]
[1743707217831,5.57145,1794.9,1794.5,5.57257]
[1743707218129,6.32227,1794.8,1794.4,5.57288]
[1743707218325,5.736,1794.7,1794.4,6.769493]
[1743707218831,11.30797,1794.7,1794.3,5.57316]
[1743707219034,11.30797,1794.7,1794.3,11.14623]
[1743707219717,11.30797,1794.7,1794.3,5.57319]
[1743707219918,5.57242,1794.6,1794.2,5.57348]
[1743707220122,0.769,1794.5,1794.1,5.57379]
[1743707220307,6.37084667,1794.5,1794.1,5.57372]
[1743707220499,6.37084667,1794.5,1794.1,11.14737]
[1743707220701,5.57324,1794.3,1794.0,5.57411]
[1743707220898,5.736,1794.3,1793.9,0.8104]
[1743707221134,0.02914667,1794.2,1794.1,5.57362]
[1743707221335,0.02914667,1794.2,1794.1,5.62935128]
[1743707222016,0.02914667,1794.2,1794.1,6.93672]
[1743707222203,0.02914667,1794.2,1794.1,8.187792]
[1743707223504,0.02914667,1794.2,1794.1,8.24351494]
[1743707223731,0.02914667,1794.2,1794.1,8.24351511]
[1743707223936,6.67e-06,1794.2,1794.1,11.187792]
[1743707224257,46.7031,1795.0,1794.8,5.57161]
[1743707224258,0.42595721,1794.9,1794.8,5.57161]
[1743707224495,0.42595721,1794.9,1794.6,5.57222]
[1743707224740,0.8301,1794.9,1794.8,5.57165]
[1743707224903,45.873,1795.0,1794.9,5.57134]
[1743707224904,5.736,1795.0,1794.9,5.57134]
[1743707225332,5.736,1795.0,1794.9,6.12134]
[1743707225530,5.736,1795.3,1795.2,5.57021]
[1743707225931,5.72339384,1795.6,1795.2,0.8148]
[1743707226142,0.42411722,1795.6,1795.4,5.56965]
[1743707226439,5.736,1795.6,1795.5,5.56947]
[1743707226607,6.15647906,1795.6,1795.5,0.12517311]
[1743707226803,6.15647906,1795.6,1795.5,5.56947]
[1743707227009,6.15647906,1795.6,1795.5,5.69464311]
[1743707227213,6.15647906,1795.6,1795.5,0.12517311]
[1743707227742,31.97233559,1795.6,1795.5,0.12517311]
[1743707227945,5.56984,1795.4,1795.0,11.14198]
[1743707228348,5.56984,1795.4,1795.1,0.12517311]
[1743707228653,5.56949,1795.5,1795.1,5.69588311]
[1743707229008,5.56949,1795.5,1795.1,5.69575311]
[1743707229212,3.0,1795.5,1795.2,5.57039]
[1743707229412,3.0,1795.5,1795.2,11.14066]
[1743707229809,8.735,1795.5,1795.3,0.12517311]
[1743707230659,3.0,1795.5,1795.3,0.12517311]
[1743707230822,5.735,1795.5,1795.3,0.12517311]
[1743707231016,5.735,1795.5,1795.3,5.69511311]
[1743707231220,5.735,1795.5,1795.3,0.12517311]
[1743707231847,13.70889891,1795.5,1795.1,5.57059]
[1743707232042,22.00817553,1795.5,1795.4,0.12517311]
[1743707232249,11.14006,1795.4,1795.0,5.571]
[1743707232746,5.56999,1795.4,1795.1,0.12517311]
[1743707232946,3.0,1795.4,1795.1,0.12517311]
[1743707233319,3.0,1795.4,1795.1,5.57061]
[1743707233529,8.56988,1795.4,1795.2,0.12517311]
[1743707233725,8.56988,1795.4,1795.0,5.57096]
[1743707233951,6.36456,1795.3,1795.1,0.12517311]
[1743707234576,5.5704,1795.2,1795.1,0.12517311]
[1743707234784,9.3648,1795.2,1795.1,0.12517311]
[1743707234946,5.57105,1795.0,1794.7,5.57195]
[1743707235141,5.734,1794.9,1794.7,5.57195]
[1743707235457,14.30534,1794.9,1794.8,0.10915056]
[1743707235654,8.734,1794.9,1794.8,0.10915056]
[1743707235856,0.7822,1794.8,1794.5,5.57243]
[1743707236373,5.57239,1794.6,1794.3,0.27877314]
[1743707236542,10.87133662,1794.7,1794.3,5.85175314]
[1743707237288,5.57227,1794.6,1794.3,5.85175314]
[1743707237461,5.734,1794.5,1794.3,0.27877314]
[1743707237639,0.7983,1794.4,1794.1,5.5738]
[1743707238035,0.7983,1794.4,1794.1,5.57372]
[1743707238357,0.7983,1794.4,1794.2,5.5735]
[1743707238671,0.7983,1794.4,1793.8,5.5747]
[1743707238672,5.57366,1794.2,1793.8,5.5747]
[1743707238973,5.734,1794.1,1793.8,5.57464]
[1743707239464,5.734,1794.1,1793.8,5.57457]
[1743707239671,5.734,1794.1,1793.8,11.14921]
[1743707240049,5.734,1794.1,1793.8,6.689491]
[1743707240248,5.734,1794.1,1793.8,11.14917]
[1743707240448,5.734,1794.1,1793.8,5.57457]
[1743707240635,11.30787,1794.1,1793.8,5.57457]
[1743707240841,5.734,1794.1,1793.8,5.57457]
[1743707241061,5.734,1794.1,1793.9,5.57434]
[1743707241440,5.734,1794.1,1794.0,0.11461939]
[1743707241636,11.30782,1794.1,1794.0,0.11461939]
[1743707241873,11.30782,1794.1,1793.8,5.57471]
[1743707242071,11.73500183,1794.1,1794.0,0.11461939]
[1743707242277,6.16118183,1794.1,1793.8,5.57463]
[1743707242454,6.16118183,1794.1,1794.0,0.11461939]
[1743707242654,6.16118183,1794.1,1793.8,5.57462]
[1743707242856,12.49760183,1794.1,1794.0,0.11461939]
[1743707243058,12.49760183,1794.1,1793.7,11.14995]
[1743707243253,12.49760183,1794.1,1794.0,0.11461939]
[1743707243556,18.07160183,1794.1,1794.0,0.11461939]
[1743707243777,5.5742,1794.0,1793.7,5.57491]
[1743707243978,11.14851,1794.0,1793.6,5.57533]
[1743707244150,5.57453,1793.9,1793.6,5.57533]
[1743707244350,16.44780662,1794.0,1793.6,5.57527]
[1743707244547,0.7626,1793.7,1793.4,5.57595]
[1743707244759,11.03427662,1793.6,1793.2,6.638285]
[1743707244999,10.87529662,1793.4,1793.1,5.62676]
[1743707245202,0.7626,1793.3,1793.1,5.62676]
[1743707245409,5.735,1793.2,1793.1,5.62676]
[1743707247355,5.735,1793.2,1793.1,6.747154]
[1743707247765,5.736,1793.4,1793.3,5.57627]
[1743707249055,5.736,1793.4,1793.1,5.62676]
[1743707249259,5.736,1793.4,1793.1,11.20352]
[1743707249555,5.736,1793.4,1793.2,5.57658]
[1743707250682,5.736,1793.4,1793.2,5.57648]
[1743707251181,5.736,1793.4,1793.2,11.15299]
[1743707251363,5.736,1793.4,1793.3,5.57631]
[1743707253385,5.96,1793.5,1793.4,5.576]
[1743707256176,6.3793308,1793.5,1793.4,5.576]
[1743707256379,6.3793308,1793.5,1793.4,5.70374039]
[1743707257567,5.96,1793.5,1793.4,5.70374039]
[1743707257817,5.96,1793.5,1793.4,6.83173143]
[1743707260289,5.96,1793.5,1793.4,5.70374039]
[1743707261091,21.58098444,1793.5,1793.4,0.12774039]
[1743707261480,21.58098444,1793.5,1793.2,5.57656]
[1743707261678,18.06644444,1793.5,1793.4,0.12774039]
[1743707261884,20.94465244,1793.5,1793.2,5.57648]
[1743707262103,18.06646444,1793.5,1793.2,5.57648]
[1743707262305,21.00436688,1793.5,1793.2,5.57648]
[1743707262690,21.00436688,1793.5,1793.3,0.12774039]
[1743707263199,15.42866688,1793.5,1793.3,0.12774039]
[1743707263777,21.00445688,1793.5,1793.3,0.12774039]
[1743707264572,15.42866688,1793.5,1793.3,0.12774039]
[1743707265476,21.00437688,1793.5,1793.3,0.12774039]
[1743707265698,5.96,1793.5,1793.4,5.576]
[1743707266089,5.96,1793.5,1793.4,5.70513739]
[1743707267009,5.737,1793.6,1793.5,5.57568]
[1743707267212,40.141,1793.9,1793.8,5.57475]
[1743707267506,40.141,1793.9,1793.8,6.68973]
[1743707267709,11.697,1794.0,1793.9,5.57444]
[1743707267923,46.25727662,1794.6,1794.3,5.573]
[1743707268205,52.67689063,1794.6,1794.4,0.12729352]
[1743707268405,5.57311,1794.4,1794.0,5.57408]
[1743707268605,5.57311,1794.4,1793.8,1.89158]
[1743707268606,0.798,1794.2,1793.8,1.89158]
[1743707268808,12.10761,1794.2,1793.6,6.90185]
[1743707269008,12.10761,1794.2,1793.9,5.5743]
[1743707269182,6.534,1794.2,1793.9,11.14858]
[1743707269377,12.10768,1794.2,1793.8,11.14942]
[1743707269580,8.57382,1794.1,1793.7,5.57489]
[1743707269888,8.57382,1794.1,1793.8,5.57465]
[1743707270290,5.57444,1793.9,1793.7,0.17431018]